Department Family,Entity,Date,Expense Type,Expense area,Supplier,Transaction Number,Amount in Sterling �s incl VAT ,Supplier VAT Registration number
NHS,Glos Hospitals NHS Foundation Trust,07/02/2023,Finished processed goods,Inventories,Bayer,000457-3,"54,747.36", 
NHS,Glos Hospitals NHS Foundation Trust,07/02/2023,Finished processed goods,Inventories,Bayer,000457-331,"49,272.62", 
NHS,Glos Hospitals NHS Foundation Trust,07/02/2023,Finished processed goods,Inventories,Octapharma Limited,000458-199,"33,112.80", 
NHS,Glos Hospitals NHS Foundation Trust,07/02/2023,Finished processed goods,Inventories,Bristol Myers Squibb Pharmaceuticals Limited,000458-40,"37,346.40", 
NHS,Glos Hospitals NHS Foundation Trust,07/02/2023,Finished processed goods,Inventories,Alloga UK Limited,000460-167,"46,800.00", 
NHS,Glos Hospitals NHS Foundation Trust,07/02/2023,Finished processed goods,Inventories,Alloga UK Limited,000460-170,"28,476.00", 
NHS,Glos Hospitals NHS Foundation Trust,07/02/2023,Finished processed goods,Inventories,Qualasept Ltd t/a Bath ASU,000460-241,"69,057.36", 
NHS,Glos Hospitals NHS Foundation Trust,07/02/2023,Finished processed goods,Inventories,Qualasept Ltd t/a Bath ASU,000460-248,"54,891.84", 
NHS,Glos Hospitals NHS Foundation Trust,07/02/2023,Finished processed goods,Inventories,Bayer,000460-56,"46,535.26", 
NHS,Glos Hospitals NHS Foundation Trust,07/02/2023,Finished processed goods,Inventories,Roche Products Limited,000460-63,"34,398.00", 
NHS,Glos Hospitals NHS Foundation Trust,07/02/2023,Finished processed goods,Inventories,Roche Products Limited,000460-65,"45,952.70", 
NHS,Glos Hospitals NHS Foundation Trust,07/02/2023,Finished processed goods,Inventories,Roche Products Limited,000460-68,"71,839.20", 
NHS,Glos Hospitals NHS Foundation Trust,07/02/2023,Finished processed goods,Inventories,Roche Products Limited,000460-69,"53,682.76", 
NHS,Glos Hospitals NHS Foundation Trust,14/02/2023,Finished processed goods,Inventories,Aah Pharmaceuticals Limited,000462-2,"31,155.77", 
NHS,Glos Hospitals NHS Foundation Trust,14/02/2023,Finished processed goods,Inventories,Bayer,000463-26,"45,622.80", 
NHS,Glos Hospitals NHS Foundation Trust,14/02/2023,Finished processed goods,Inventories,Bayer,000463-29,"45,622.80", 
NHS,Glos Hospitals NHS Foundation Trust,14/02/2023,Finished processed goods,Inventories,Alliance Healthcare,000464-86,"27,855.09", 
NHS,Glos Hospitals NHS Foundation Trust,14/02/2023,Finished processed goods,Inventories,Bayer,000465-105,"51,553.76", 
NHS,Glos Hospitals NHS Foundation Trust,14/02/2023,Finished processed goods,Inventories,Roche Products Limited,000465-112,"32,760.00", 
NHS,Glos Hospitals NHS Foundation Trust,14/02/2023,Finished processed goods,Inventories,Roche Products Limited,000465-114,"76,986.00", 
NHS,Glos Hospitals NHS Foundation Trust,14/02/2023,Finished processed goods,Inventories,Alloga UK Limited,000465-244,"46,800.00", 
NHS,Glos Hospitals NHS Foundation Trust,14/02/2023,Finished processed goods,Inventories,Octapharma Limited,000465-91,"36,178.80", 
NHS,Glos Hospitals NHS Foundation Trust,21/02/2023,Finished processed goods,Inventories,CSL Behring UK Limited,000466-79,"49,581.30", 
NHS,Glos Hospitals NHS Foundation Trust,21/02/2023,Finished processed goods,Inventories,Bristol Myers Squibb Pharmaceuticals Limited,000467-67,"26,070.70", 
NHS,Glos Hospitals NHS Foundation Trust,21/02/2023,Finished processed goods,Inventories,Roche Products Limited,000468-192,"109,200.00", 
NHS,Glos Hospitals NHS Foundation Trust,21/02/2023,Finished processed goods,Inventories,Alliance Healthcare,000469-225,"34,040.22", 
NHS,Glos Hospitals NHS Foundation Trust,21/02/2023,Finished processed goods,Inventories,Alliance Healthcare,000469-238,"35,993.81", 
NHS,Glos Hospitals NHS Foundation Trust,21/02/2023,Finished processed goods,Inventories,Roche Products Limited,000470-471,"32,760.00", 
NHS,Glos Hospitals NHS Foundation Trust,21/02/2023,Finished processed goods,Inventories,Qualasept Ltd t/a Bath ASU,000470-560,"34,528.68", 
NHS,Glos Hospitals NHS Foundation Trust,21/02/2023,Finished processed goods,Inventories,Qualasept Ltd t/a Bath ASU,000470-561,"33,460.70", 
NHS,Glos Hospitals NHS Foundation Trust,21/02/2023,Finished processed goods,Inventories,Bayer,000471-9,"45,622.80", 
NHS,Glos Hospitals NHS Foundation Trust,28/02/2023,Finished processed goods,Inventories,Bayer,000472-150,"45,622.80", 
NHS,Glos Hospitals NHS Foundation Trust,28/02/2023,Finished processed goods,Inventories,Bayer,000472-152,"-45,622.80", 
NHS,Glos Hospitals NHS Foundation Trust,28/02/2023,Finished processed goods,Inventories,Bayer,000473-148,"45,622.80", 
NHS,Glos Hospitals NHS Foundation Trust,28/02/2023,Finished processed goods,Inventories,Alliance Healthcare,000474-461,"35,148.60", 
NHS,Glos Hospitals NHS Foundation Trust,28/02/2023,Finished processed goods,Inventories,Alloga UK Limited,000475-152,"45,000.00", 
NHS,Glos Hospitals NHS Foundation Trust,28/02/2023,Finished processed goods,Inventories,Alloga UK Limited,000475-153,"27,120.00", 
NHS,Glos Hospitals NHS Foundation Trust,28/02/2023,Finished processed goods,Inventories,Qualasept Ltd t/a Bath ASU,000475-228,"34,528.68", 
NHS,Glos Hospitals NHS Foundation Trust,28/02/2023,Finished processed goods,Inventories,Bayer,000475-77,"49,272.62", 
NHS,Glos Hospitals NHS Foundation Trust,28/02/2023,Finished processed goods,Inventories,Bayer,000475-78,"49,272.62", 
NHS,Glos Hospitals NHS Foundation Trust,28/02/2023,Finished processed goods,Inventories,Bristol Myers Squibb Pharmaceuticals Limited,000475-79,"27,531.00", 
NHS,Glos Hospitals NHS Foundation Trust,28/02/2023,Finished processed goods,Inventories,Roche Products Limited,000475-81,"107,465.44", 
NHS,Glos Hospitals NHS Foundation Trust,28/02/2023,Finished processed goods,Inventories,Roche Products Limited,000475-82,"76,986.00", 
NHS,Glos Hospitals NHS Foundation Trust,28/02/2023,Implant Procedures,Cardiology Laboratory,Abbott Medical UK Limited,923708,"46,680.00", 
NHS,Glos Hospitals NHS Foundation Trust,14/02/2023,Implant Procedures,Cardiology Laboratory,Medtronic Limited,926446,"29,520.00", 
NHS,Glos Hospitals NHS Foundation Trust,07/02/2023,Laboratory Reagents,Microbiology - GRH,Abbott Rapid Diagnostics Limited,942531,"57,600.00", 
NHS,Glos Hospitals NHS Foundation Trust,14/02/2023,Minor Works,GHP Contract,Apleona PPP Limited,944390,"34,181.09", 
NHS,Glos Hospitals NHS Foundation Trust,07/02/2023,Sal Sacrifice Car Scheme,Pay Deductions,Tusker Direct,946453,"67,236.01", 
NHS,Glos Hospitals NHS Foundation Trust,14/02/2023,Patients Appliances : Repairs,Patient Appliances,Opcare Limited,946754,"27,419.24", 
NHS,Glos Hospitals NHS Foundation Trust,14/02/2023,Purchase Computers/Systems,Capital Project Control,Ascribe Ltd (Emis Health),947177,"57,600.00", 
NHS,Glos Hospitals NHS Foundation Trust,21/02/2023,Computer Software / License  Fees,Audiology - GRH,Auditdata Ltd,948031,"37,412.40", 
NHS,Glos Hospitals NHS Foundation Trust,07/02/2023,External Contracts : Other,Radiology CDC,Cobalt Health,948136,"68,100.00", 
NHS,Glos Hospitals NHS Foundation Trust,14/02/2023,Medical & Surgical Equipment : Disposable,Upper GI Specialty,Medtronic Limited,948316,"-37,440.00", 
NHS,Glos Hospitals NHS Foundation Trust,07/02/2023,Advertising & Staff Recruitment,Overseas Recruitment,ID Medical Group Limited,948687,"40,800.00", 
NHS,Glos Hospitals NHS Foundation Trust,14/02/2023,Computer Software / License  Fees,Radiography,Philips UK and Ireland,949241,"287,830.50", 
NHS,Glos Hospitals NHS Foundation Trust,14/02/2023,Implant Procedures,Cardiology Laboratory,Medtronic Limited,950097,"-29,520.00", 
NHS,Glos Hospitals NHS Foundation Trust,07/02/2023,Prescribing Control,Payables - Manual,HA79125 NHSBSA,950245,"118,186.99", 
NHS,Glos Hospitals NHS Foundation Trust,07/02/2023,Computer Software / License  Fees,Smartcare,InterSystems,950296,"61,668.53", 
NHS,Glos Hospitals NHS Foundation Trust,07/02/2023,Purchase Computers/Systems,Capital Project Control,XMA Limited,950325,"544,794.00", 
NHS,Glos Hospitals NHS Foundation Trust,28/02/2023,Computer Maintenance,IT Contracts Shared Service,TeamViewer GmbH,950346,"27,139.80", 
NHS,Glos Hospitals NHS Foundation Trust,07/02/2023,NHS Logistics control,Payables - Manual,Supply Chain Coordination Ltd - Consumables,950378,"95,716.18", 
NHS,Glos Hospitals NHS Foundation Trust,10/02/2023,Laboratory Reagents,Microbiology - GRH,Abbott Rapid Diagnostics Limited,950501,"-25,344.00", 
NHS,Glos Hospitals NHS Foundation Trust,10/02/2023,Laboratory Reagents,Microbiology - GRH,Abbott Rapid Diagnostics Limited,950502,"25,344.00", 
NHS,Glos Hospitals NHS Foundation Trust,10/02/2023,Laboratory Reagents,Microbiology - GRH,Abbott Rapid Diagnostics Limited,950503,"-32,256.00", 
NHS,Glos Hospitals NHS Foundation Trust,10/02/2023,Laboratory Reagents,Microbiology - GRH,Abbott Rapid Diagnostics Limited,950504,"32,256.00", 
NHS,Glos Hospitals NHS Foundation Trust,07/02/2023,Laboratory Reagents,Microbiology - GRH,Abbott Rapid Diagnostics Limited,950505,"46,080.00", 
NHS,Glos Hospitals NHS Foundation Trust,07/02/2023,Purchase Computers/Systems,Capital Project Control,XMA Limited,950509,"225,930.00", 
NHS,Glos Hospitals NHS Foundation Trust,14/02/2023,Purchase Computers/Systems,Capital Project Control,XMA Limited,950510,"668,768.76", 
NHS,Glos Hospitals NHS Foundation Trust,07/02/2023,Purchase Computers/Systems,Capital Project Control,XMA Limited,950511,"150,846.00", 
NHS,Glos Hospitals NHS Foundation Trust,07/02/2023,Purchase Computers/Systems,Capital Project Control,XMA Limited,950512,"225,930.00", 
NHS,Glos Hospitals NHS Foundation Trust,07/02/2023,X-Ray Equipment : Maintenance,General Theatre 1 - Non Pay only,Supply Chain Coordination Ltd - Maint. (201),950946,"55,791.42", 
NHS,Glos Hospitals NHS Foundation Trust,07/02/2023,Purchase Computers/Systems,Capital Project Control,XMA Limited,950959,"108,207.00", 
NHS,Glos Hospitals NHS Foundation Trust,07/02/2023,Laboratory External Tests,Molecular Tests - out of tariff,"Exact Sciences UK, Ltd",951059,"29,160.00", 
NHS,Glos Hospitals NHS Foundation Trust,07/02/2023,Laboratory External Tests,Molecular Tests - out of tariff,"Exact Sciences UK, Ltd",951060,"-29,160.00", 
NHS,Glos Hospitals NHS Foundation Trust,07/02/2023,Laboratory External Tests,Molecular Tests - out of tariff,"Exact Sciences UK, Ltd",951061,"29,160.00", 
NHS,Glos Hospitals NHS Foundation Trust,07/02/2023,Colour Connection,Payables - Manual,Colour Connection,951130,"44,174.98", 
NHS,Glos Hospitals NHS Foundation Trust,07/02/2023,Purchase Computers/Systems,Capital Project Control,Keystream Healthcare,951368,"82,656.00", 
NHS,Glos Hospitals NHS Foundation Trust,07/02/2023,Non - Healthcare - NHS Trusts,Hereford Clinic Rental,HA95059 Wye Valley NHS Trust,951503,"155,586.00", 
NHS,Glos Hospitals NHS Foundation Trust,14/02/2023,Interpreting services,Patient Experience Improvement,DA Languages,951777,"26,003.10", 
NHS,Glos Hospitals NHS Foundation Trust,14/02/2023,Laboratory Reagents,Haematology / Immunology Lab trustwide - NONPAY,Beckman Coulter United Kingdom Limited,951781,"169,065.97", 
NHS,Glos Hospitals NHS Foundation Trust,14/02/2023,Regular recharges,Scheduled Recharges from NPX,Gloucestershire Health and Care NHS FT Pr GCS,951965,"83,593.14", 
NHS,Glos Hospitals NHS Foundation Trust,14/02/2023,Regular recharges,Scheduled Recharges from NPX,Gloucestershire Health and Care NHS FT Pr GCS,951966,"93,193.39", 
NHS,Glos Hospitals NHS Foundation Trust,14/02/2023,Regular recharges,Scheduled Recharges from NPX,Gloucestershire Health and Care NHS FT Pr GCS,951967,"156,349.37", 
NHS,Glos Hospitals NHS Foundation Trust,14/02/2023,Building - External Contracts,Capital Project Control,Kier Infrastructure & Overseas Limited,952019,"1,487,125.69", 
NHS,Glos Hospitals NHS Foundation Trust,14/02/2023,External Consultancy Fees,Ophthalmology Fund,Medisoft Limited,952240,"30,000.00", 
NHS,Glos Hospitals NHS Foundation Trust,21/02/2023,Patients Appliances : Repairs,Patient Appliances,Opcare Limited,952252,"31,852.81", 
NHS,Glos Hospitals NHS Foundation Trust,21/02/2023,Computer Software / License  Fees,Clinical Systems,PCTI Solutions t/as Advanced NFP,952257,"71,862.00", 
NHS,Glos Hospitals NHS Foundation Trust,14/02/2023,Regular recharges,Scheduled Recharges from NPX,Gloucestershire Health and Care NHS FT Pr GCS,952263,"104,375.97", 
NHS,Glos Hospitals NHS Foundation Trust,14/02/2023,Regular recharges,Scheduled Recharges from NPX,Gloucestershire Health and Care NHS FT Pr GCS,952379,"83,298.42", 
NHS,Glos Hospitals NHS Foundation Trust,21/02/2023,Purchase Computers/Systems,Capital Project Control,XMA Limited,952394,"27,782.40", 
NHS,Glos Hospitals NHS Foundation Trust,14/02/2023,Regular recharges,Scheduled Recharges from NPX,Gloucestershire Health and Care NHS FT Pr GCS,952450,"285,599.14", 
NHS,Glos Hospitals NHS Foundation Trust,14/02/2023,Regular recharges,Scheduled Recharges from NPX,Gloucestershire Health and Care NHS FT Pr GCS,952724,"162,558.10", 
NHS,Glos Hospitals NHS Foundation Trust,21/02/2023,Contractual Clinical Services,Urology Specialty,Shire Surgical Limited,952781,"33,500.00", 
NHS,Glos Hospitals NHS Foundation Trust,14/02/2023,Medical & Surgical Equipment : General,Radiography,Cobalt Health,952788,"53,157.50", 
NHS,Glos Hospitals NHS Foundation Trust,14/02/2023,External Contracts : Other,Radiology CDC,Cobalt Health,952789,"67,343.33", 
NHS,Glos Hospitals NHS Foundation Trust,14/02/2023,Contract : Other External,UC & Dividend,NHS Gloucestershire Managed Services,953021,"5,841,775.56", 
NHS,Glos Hospitals NHS Foundation Trust,21/02/2023,Computer Software / License  Fees,RISK,Datix Limited,953115,"101,673.72", 
NHS,Glos Hospitals NHS Foundation Trust,17/02/2023,Barclay Card,Payables - Manual,Barclaycard Commercial,953876,"83,444.46", 
NHS,Glos Hospitals NHS Foundation Trust,21/02/2023,Medical & Surgical Equip. : Finance & Op. Leases,Leases,Siemens Financial Services Limited,953950,"60,294.27", 
NHS,Glos Hospitals NHS Foundation Trust,21/02/2023,Contract : Other External,GHP Contract,Gloucester Healthcare Partnership Limited,954445,"645,707.41", 
NHS,Glos Hospitals NHS Foundation Trust,21/02/2023,Contract : Other External,GHP Contract,Gloucester Healthcare Partnership Limited,954446,"645,707.41", 
NHS,Glos Hospitals NHS Foundation Trust,28/02/2023,Computer Software / License  Fees,Data Team,Facts and Dimensions Limited,954465,"36,362.66", 
NHS,Glos Hospitals NHS Foundation Trust,21/02/2023,Laboratory Reagents,Microbiology - GRH,Chrystal Consulting Limited,954480,"39,224.60", 
NHS,Glos Hospitals NHS Foundation Trust,28/02/2023,External Contracts : Other,Radiography Consultants,Medica Reporting Limited,954745,"44,551.68", 
NHS,Glos Hospitals NHS Foundation Trust,28/02/2023,External Contracts : Other,Radiography,Cobalt Health,954746,"25,487.00", 
NHS,Glos Hospitals NHS Foundation Trust,28/02/2023,Sales Of Goods And Services,Pharmacy - GRH,Alloga UK Limited,954792,"-81,000.00", 
NHS,Glos Hospitals NHS Foundation Trust,28/02/2023,Computer Network Costs,Network Infrastructure,BT Global Services,954799,"43,535.33", 
NHS,Glos Hospitals NHS Foundation Trust,28/02/2023,External Contracts : Other,Radiography,Cobalt Health,954837,"72,000.00", 
NHS,Glos Hospitals NHS Foundation Trust,28/02/2023,Regular recharges,Scheduled Recharges from NPX,Gloucestershire Health and Care NHS FT Pr GCS,954910,"83,560.39", 
NHS,Glos Hospitals NHS Foundation Trust,28/02/2023,Contractual Clinical Services,Regional CoVid-19 Testing Centre,Gloucestershire Health and Care NHS FT Pr GCS,954911,"208,408.80", 
NHS,Glos Hospitals NHS Foundation Trust,28/02/2023,Regular recharges,Scheduled Recharges from NPX,Gloucestershire Health and Care NHS FT Pr GCS,954912,"86,835.92", 
NHS,Glos Hospitals NHS Foundation Trust,28/02/2023,Regular recharges,Scheduled Recharges from NPX,Gloucestershire Health and Care NHS FT Pr GCS,954913,"189,737.61", 
NHS,Glos Hospitals NHS Foundation Trust,28/02/2023,Conferences And Seminars,Pharmacy - GRH,HA90825 Uni Hosp Bristol Weston Found Trust,954973,"35,026.62", 
NHS,Glos Hospitals NHS Foundation Trust,28/02/2023,Drugs - Passthrough Expenditure,Hereford Clinic Rental,HA95059 Wye Valley NHS Trust,955278,"510,489.26", 
NHS,Glos Hospitals NHS Foundation Trust,28/02/2023,Drugs - Passthrough Expenditure,Hereford Clinic Rental,HA95059 Wye Valley NHS Trust,955279,"488,000.79", 
NHS,Glos Hospitals NHS Foundation Trust,28/02/2023,Contract : Other External,GHP Contract,Gloucester Healthcare Partnership Limited,955340,"27,774.06", 
NHS,Glos Hospitals NHS Foundation Trust,28/02/2023,Contract : Other External,GHP Contract,Gloucester Healthcare Partnership Limited,955341,"27,774.06", 
NHS,Glos Hospitals NHS Foundation Trust,14/02/2023,Histology Practice - CGH,Drs Fees,Histology Partners,DF222310-33,"27,240.00", 
